bitfinex/quotes_BTCUSD_20250129
["timestamp","ask_amount","ask_price","bid_price","bid_amount"]
[1738165141415,0.27047516,101880.0,101870.0,0.0004066]
[1738165147321,0.173232,101880.0,101870.0,0.1476526]
[1738165147744,0.003,101880.0,101870.0,0.1476526]
[1738165149101,0.002,101880.0,101870.0,0.1476526]
[1738165150314,0.35385268,101890.0,101870.0,0.1476526]
[1738165150473,0.37685268,101890.0,101880.0,0.147232]
[1738165150908,0.37685268,101890.0,101880.0,0.1473205]
[1738165151111,0.18055568,101890.0,101880.0,0.1473205]
[1738165151370,0.03455362,101890.0,101880.0,0.1473205]
[1738165151728,0.18177062,101890.0,101880.0,0.1473205]
[1738165152256,0.18377062,101890.0,101880.0,0.1473205]
[1738165153649,0.18477062,101890.0,101880.0,0.1473205]
[1738165154272,0.03755362,101890.0,101880.0,0.1473205]
[1738165154482,0.01455362,101890.0,101880.0,0.2256699]
[1738165154702,0.01332668,101890.0,101880.0,0.2735699]
[1738165155574,0.18354368,101890.0,101880.0,0.0481379]
[1738165155783,0.18154368,101890.0,101880.0,0.1474699]
[1738165155990,0.62176732,101890.0,101880.0,0.0032379]
[1738165156170,0.147246,101870.0,101860.0,0.0001423]
[1738165156410,0.24448916,101870.0,101860.0,0.0001423]
[1738165156617,0.24448916,101870.0,101860.0,0.00035928]
[1738165156829,0.24448916,101870.0,101860.0,0.14761928]
[1738165157363,0.24448916,101870.0,101860.0,0.14810038]
[1738165158274,0.24448916,101870.0,101860.0,0.00084038]
[1738165158496,0.35546964,101870.0,101860.0,0.00084038]
[1738165158707,0.24448916,101870.0,101860.0,0.00084038]
[1738165159366,0.24448916,101870.0,101860.0,0.00184038]
[1738165159708,0.35546964,101870.0,101860.0,0.00184038]
[1738165161446,0.35546964,101870.0,101860.0,0.00084038]
[1738165161884,0.24448916,101870.0,101860.0,0.00084038]
[1738165162556,0.24448916,101870.0,101860.0,0.00384038]
[1738165162787,0.35546964,101870.0,101860.0,0.00384038]
[1738165162995,0.35546964,101870.0,101860.0,0.00084038]
[1738165163899,0.24448916,101870.0,101860.0,0.00084038]
[1738165164909,0.24448916,101870.0,101860.0,0.14810038]
[1738165165122,0.147242,101880.0,101870.0,0.147246]
[1738165165334,0.24570226,101880.0,101870.0,0.147246]
[1738165165579,0.09724316,101880.0,101870.0,0.14744371]
[1738165165753,0.09847023,101880.0,101870.0,0.14744371]
[1738165165952,0.54012004,101890.0,101870.0,0.34375771]
[1738165166154,0.6373632,101890.0,101870.0,0.54007471]
[1738165166613,0.001,101880.0,101870.0,0.34375771]
[1738165167112,0.004,101880.0,101870.0,0.34390011]
[1738165168321,0.003,101880.0,101870.0,0.34390011]
[1738165169307,0.150232,101880.0,101870.0,0.34390011]
[1738165169524,0.15145898,101880.0,101870.0,0.34390011]
[1738165169706,0.00422698,101880.0,101870.0,0.34390011]
[1738165169901,0.004,101880.0,101870.0,0.34390011]
[1738165170186,0.151232,101880.0,101870.0,0.34390011]
[1738165170561,0.15245904,101880.0,101870.0,0.34390011]
[1738165170893,0.35945564,101880.0,101870.0,0.00034011]
[1738165171094,0.24847516,101880.0,101870.0,0.00034011]
[1738165171601,0.24847516,101880.0,101870.0,0.14758611]
[1738165173749,0.24847516,101880.0,101870.0,0.00034011]
[1738165174398,0.24847516,101880.0,101870.0,0.14758611]
[1738165176716,0.10124316,101880.0,101870.0,0.14758611]
[1738165176931,0.004,101880.0,101870.0,0.14758611]
[1738165177742,0.151232,101880.0,101870.0,0.14758611]
[1738165178042,0.148232,101880.0,101870.0,0.14758611]
[1738165178252,0.5500065,101890.0,101870.0,0.54023311]
[1738165178434,0.64724966,101890.0,101870.0,0.54023311]
[1738165178635,0.147232,101880.0,101870.0,0.34390611]
[1738165178930,0.64724966,101890.0,101870.0,0.54022511]
[1738165179130,0.10743966,101890.0,101880.0,0.147232]
[1738165179443,0.10743966,101890.0,101880.0,0.14741044]
[1738165179444,0.25465666,101890.0,101880.0,0.14741044]
[1738165180349,0.10743966,101890.0,101880.0,0.14741044]
[1738165181362,0.25588361,101890.0,101880.0,0.14741044]
[1738165181580,0.25465666,101890.0,101880.0,0.00017844]
[1738165181924,0.25465666,101890.0,101870.0,0.5400164]
[1738165182136,0.45095566,101890.0,101870.0,0.7363344]
[1738165182527,0.64725366,101890.0,101870.0,0.7363344]
[1738165182756,0.64725366,101890.0,101870.0,0.7363354]
[1738165182966,0.45095466,101890.0,101880.0,0.00017844]
[1738165183300,0.45095466,101890.0,101870.0,0.7363344]
[1738165183507,0.45095466,101890.0,101880.0,0.00017844]
[1738165183704,0.64725166,101890.0,101870.0,0.7363344]
[1738165183939,0.45095366,101890.0,101880.0,0.00017844]
[1738165184156,0.64725266,101890.0,101870.0,0.7363344]
[1738165184353,0.45095366,101890.0,101880.0,0.00017844]
[1738165184552,0.45095366,101890.0,101880.0,0.147232]
[1738165184760,0.45095366,101890.0,101880.0,0.14741044]
[1738165189740,0.45095366,101890.0,101880.0,0.00017844]
[1738165189974,0.64725366,101890.0,101870.0,0.5400224]
[1738165190145,0.45095366,101890.0,101880.0,0.00017844]
[1738165190355,0.45095366,101890.0,101880.0,0.147232]
[1738165190604,0.45095366,101890.0,101880.0,0.14741044]
[1738165191622,0.0101965,101890.0,101880.0,0.14741044]
[1738165192035,0.0101965,101890.0,101880.0,0.22311044]
[1738165192208,0.0101965,101890.0,101880.0,0.26821044]
[1738165192792,0.0101965,101890.0,101880.0,0.51821044]
[1738165194683,0.0101965,101890.0,101880.0,0.41821044]
[1738165200970,0.15864033,101890.0,101880.0,0.14741044]
[1738165201185,0.0101965,101890.0,101880.0,0.14741044]
[1738165201739,0.1574135,101890.0,101880.0,0.14741044]
[1738165202638,0.25588357,101890.0,101880.0,0.00017844]
[1738165202863,0.25465666,101890.0,101880.0,0.00017844]
[1738165203080,0.147232,101880.0,101870.0,0.3437024]
[1738165203443,0.147232,101880.0,101870.0,0.1473884]
[1738165203770,0.24570218,101880.0,101870.0,0.1473884]
[1738165203943,0.24447516,101880.0,101870.0,0.1473884]
[1738165205522,0.24447516,101880.0,101870.0,0.0001424]
[1738165206262,0.24447516,101880.0,101870.0,0.0031424]
[1738165206465,0.24447516,101880.0,101870.0,0.00434011]
[1738165207758,0.37845564,101880.0,101870.0,0.00434011]
[1738165208223,0.45845564,101880.0,101870.0,0.00434011]
[1738165208551,0.45845564,101880.0,101870.0,0.00357023]
[1738165208753,0.170246,101870.0,101860.0,5.455e-05]
[1738165208957,0.52969699,101870.0,101860.0,5.455e-05]
[1738165209161,0.52846964,101870.0,101860.0,5.455e-05]
[1738165210194,0.52846964,101870.0,101860.0,0.0002221]
[1738165210828,0.57416964,101870.0,101860.0,0.0002221]
[1738165211038,0.35026,101860.0,101850.0,0.0002023]
[1738165211250,0.79606412,101860.0,101850.0,0.00014518]
[1738165211463,0.78606412,101860.0,101850.0,0.00014752]
[1738165211742,0.81484549,101860.0,101850.0,0.00014752]
[1738165211916,0.350275,101850.0,101840.0,5.33e-06]
[1738165212120,0.74647912,101850.0,101840.0,5.33e-06]
[1738165212603,0.63549864,101850.0,101840.0,5.33e-06]
[1738165212808,0.49451816,101850.0,101840.0,5.33e-06]
[1738165212963,0.43697594,101850.0,101840.0,5.33e-06]
[1738165213181,0.392724,101860.0,101840.0,5.33e-06]
[1738165213380,0.45590588,101860.0,101840.0,0.62125333]
[1738165213584,0.25954588,101860.0,101850.0,0.147275]
[1738165213735,0.01202772,101860.0,101850.0,0.14738371]
[1738165213941,0.01202772,101860.0,101850.0,0.19268371]
[1738165214203,0.01002772,101860.0,101850.0,0.19268371]
[1738165214409,0.16775697,101870.0,101850.0,0.38904671]
[1738165214410,0.36408597,101870.0,101850.0,0.38904671]
[1738165214673,0.002,101860.0,101850.0,0.19268371]
[1738165215088,0.005,101860.0,101850.0,0.19268371]
[1738165215297,0.005,101860.0,101850.0,0.14738371]
[1738165215433,0.25073044,101860.0,101850.0,0.00010871]
[1738165215656,0.24950316,101860.0,101850.0,0.00010871]
[1738165215856,0.64220816,101860.0,101840.0,0.54005033]
[1738165216222,0.00122737,101850.0,101840.0,0.14729133]
[1738165216571,0.14850237,101850.0,101840.0,0.14729133]
[1738165216779,0.00122737,101850.0,101840.0,0.14729133]
[1738165217730,0.46386516,101860.0,101850.0,0.001]
[1738165218275,0.46386516,101860.0,101840.0,0.15029133]
[1738165218276,0.147275,101850.0,101840.0,0.15029133]
[1738165218477,0.1485024,101850.0,101840.0,0.00300533]
[1738165218685,0.26874556,101850.0,101840.0,0.00300533]
[1738165218894,0.37849864,101850.0,101840.0,0.00400533]
[1738165219098,0.26751816,101850.0,101840.0,0.00400533]
[1738165220207,0.26751816,101850.0,101840.0,0.00100533]
[1738165221219,0.27051816,101850.0,101840.0,0.14829433]
[1738165221433,0.003,101850.0,101840.0,0.14829433]
[1738165221618,0.003,101850.0,101840.0,0.14729433]
[1738165221864,0.003,101850.0,101840.0,0.42259433]
[1738165222052,0.003,101850.0,101840.0,0.66983749]
[1738165222253,0.003,101850.0,101840.0,0.67083749]
[1738165222801,0.003,101850.0,101840.0,0.66983749]
[1738165223400,0.003,101850.0,101840.0,0.67083749]
[1738165224097,0.00987518,101860.0,101850.0,0.147275]
[1738165224419,0.08797416,101870.0,101860.0,0.14726]
[1738165224625,0.08797416,101870.0,101860.0,0.19286]
[1738165224841,0.00014484,101870.0,101860.0,0.19286]
[1738165225232,0.244634,101870.0,101850.0,0.539981]
[1738165225432,0.25457585,101870.0,101860.0,0.14707245]
[1738165225663,0.45090585,101870.0,101850.0,0.539985]
[1738165225866,0.64724485,101870.0,101850.0,0.539985]
[1738165226067,0.45090585,101870.0,101850.0,0.736341]
[1738165226267,0.45090585,101870.0,101850.0,0.539984]
[1738165226652,0.25457585,101870.0,101860.0,0.14704708]
[1738165226861,0.01208669,101870.0,101860.0,0.14704708]
[1738165227040,0.01331378,101870.0,101860.0,0.14704708]
[1738165227238,0.01208669,101870.0,101860.0,0.14704708]
[1738165228076,0.01508669,101870.0,101860.0,0.24704708]
[1738165228281,0.01508669,101870.0,101860.0,0.32984708]
[1738165228483,0.01508669,101870.0,101860.0,0.3288667]
[1738165228720,0.01308669,101870.0,101860.0,0.3288667]
[1738165228902,0.01308669,101870.0,101860.0,0.32819346]
[1738165229094,0.01308669,101870.0,101860.0,0.32752202]
[1738165229306,0.01008669,101870.0,101860.0,0.32752202]
[1738165230782,0.01038573,101870.0,101860.0,0.32752202]
[1738165231000,8.8e-07,101870.0,101860.0,1.20305518]
[1738165231200,0.00029904,101890.0,101880.0,0.373332]
[1738165231401,0.00034741,101890.0,101880.0,1.56777416]
[1738165232186,0.00034741,101890.0,101880.0,1.34059516]
[1738165232363,0.00034741,101890.0,101880.0,0.95907516]
[1738165232775,0.00034741,101890.0,101880.0,1.06007516]
[1738165233018,0.00034741,101890.0,101880.0,1.07755516]
[1738165233194,0.00034741,101890.0,101880.0,1.07655516]
[1738165233689,0.00034741,101890.0,101880.0,1.07855516]
[1738165236163,0.00034741,101890.0,101880.0,1.10903137]
[1738165236573,0.00034741,101890.0,101880.0,1.49541437]
[1738165237621,0.00034741,101890.0,101880.0,1.5170476]
[1738165238027,4.1e-07,101890.0,101880.0,1.5270476]
[1738165238232,4.1e-07,101890.0,101880.0,1.11018839]
[1738165238582,4.1e-07,101890.0,101880.0,1.13318839]
[1738165239176,0.00029883,101910.0,101900.0,0.2]
[1738165239427,0.00078258,101910.0,101900.0,1.67281316]
[1738165239635,0.00078258,101910.0,101900.0,1.25667139]
[1738165239846,0.00078258,101910.0,101900.0,1.19471939]
[1738165240031,0.00078258,101910.0,101900.0,0.90228416]
[1738165240233,0.00078258,101910.0,101900.0,0.56984616]
[1738165241099,0.00078258,101910.0,101900.0,0.80618939]
[1738165241318,0.00078258,101910.0,101900.0,0.72163839]
[1738165241520,0.00078258,101910.0,101900.0,0.70000516]
[1738165241727,0.00078258,101910.0,101900.0,0.56984616]
[1738165242377,0.00078258,101910.0,101900.0,0.58132616]
[1738165242597,0.00078258,101910.0,101900.0,0.58832616]
[1738165243045,0.00078258,101910.0,101900.0,0.58132616]
[1738165243530,0.00078258,101910.0,101900.0,0.147203]
[1738165243725,0.00078258,101910.0,101900.0,0.162683]
[1738165243930,0.00078258,101910.0,101900.0,0.401203]
[1738165244133,0.00078258,101910.0,101900.0,0.412683]
[1738165244519,0.00078258,101910.0,101900.0,0.59944616]
[1738165244729,0.00078258,101910.0,101900.0,0.68972616]
[1738165244932,0.00078258,101910.0,101900.0,0.93396316]
[1738165245144,0.00078258,101910.0,101900.0,0.95559639]
[1738165245807,0.00078258,101910.0,101900.0,0.96559639]
[1738165246016,0.00078258,101910.0,101900.0,0.95559639]
[1738165246219,0.00078258,101910.0,101900.0,0.96559639]
[1738165246427,0.00078258,101910.0,101900.0,0.95559639]
[1738165246636,0.00078258,101910.0,101900.0,0.96559639]
[1738165247472,0.00078258,101910.0,101900.0,0.85559639]
[1738165247794,0.00078258,101910.0,101900.0,0.95559639]
[1738165249205,0.00078258,101910.0,101900.0,0.86485939]
[1738165249428,0.00078258,101910.0,101900.0,1.48875939]
[1738165249651,0.00078258,101910.0,101900.0,0.84322616]
[1738165250054,0.00078258,101910.0,101900.0,0.86485939]
[1738165250196,0.00078258,101910.0,101900.0,0.84322616]
[1738165250549,0.00078258,101910.0,101900.0,0.83174616]
[1738165250772,0.00078258,101910.0,101900.0,0.86485939]
[1738165250974,0.00078258,101910.0,101900.0,0.74322616]
[1738165251177,0.00078258,101910.0,101900.0,0.54322616]
[1738165251378,0.00078258,101910.0,101900.0,0.67894916]
[1738165251508,0.00078258,101910.0,101900.0,0.79042916]
[1738165251710,0.00078258,101910.0,101900.0,0.69042916]
[1738165252082,0.00078258,101910.0,101900.0,0.79042916]
[1738165253268,0.00078258,101910.0,101900.0,0.77894916]
[1738165253473,0.00078258,101910.0,101900.0,0.79042916]
[1738165253670,0.00078258,101910.0,101900.0,0.77894916]
[1738165253883,0.00078258,101910.0,101900.0,0.79042916]
[1738165255331,0.00078258,101910.0,101900.0,0.79058526]
[1738165258755,0.00078258,101910.0,101900.0,0.70030526]
[1738165258954,0.00078258,101910.0,101900.0,0.71178526]
[1738165261112,0.00078258,101910.0,101900.0,0.74220607]
[1738165261512,0.00078258,101910.0,101900.0,1.16962407]
[1738165262172,0.00078258,101910.0,101900.0,1.1912573]
[1738165262304,0.00078258,101910.0,101900.0,1.2674573]
[1738165263766,0.00029883,101930.0,101920.0,0.347174]
[1738165264017,8.7e-07,101930.0,101920.0,2.05776597]
[1738165264264,7e-07,101940.0,101930.0,0.87449]
[1738165264497,7e-07,101940.0,101930.0,0.7097562]
[1738165264718,7e-07,101940.0,101930.0,0.6767562]
[1738165264927,7e-07,101940.0,101930.0,0.85512297]
[1738165265395,7e-07,101940.0,101930.0,0.87509214]
[1738165266029,7e-07,101940.0,101930.0,0.85512297]
[1738165266706,7e-07,101940.0,101930.0,0.32757981]
[1738165266910,7e-07,101940.0,101930.0,0.43905981]
[1738165268048,7e-07,101940.0,101930.0,0.63651359]
[1738165268466,7e-07,101940.0,101930.0,0.64151359]
[1738165268916,7e-07,101940.0,101930.0,0.63651359]
[1738165269097,7e-07,101940.0,101930.0,0.71701359]
[1738165269303,7e-07,101940.0,101930.0,0.71901359]
[1738165269555,7e-07,101940.0,101930.0,1.35101359]
[1738165269773,7e-07,101940.0,101930.0,1.36898276]
[1738165270118,7e-07,101940.0,101930.0,1.37398276]
[1738165270363,7e-07,101940.0,101930.0,1.36898276]
[1738165270613,7e-07,101940.0,101930.0,1.21901359]
[1738165270838,7e-07,101940.0,101930.0,1.32601359]
[1738165271048,7e-07,101940.0,101930.0,1.34798276]
[1738165271250,7e-07,101940.0,101930.0,1.37098276]
[1738165271847,7e-07,101940.0,101930.0,1.37063471]
[1738165272050,7e-07,101940.0,101930.0,1.39063471]
[1738165272259,7e-07,101940.0,101930.0,1.41867149]
[1738165272462,7e-07,101940.0,101930.0,1.24066554]
[1738165272668,7e-07,101940.0,101930.0,1.36066554]
[1738165272862,7e-07,101940.0,101930.0,1.39063471]
[1738165273278,0.0010007,101940.0,101930.0,1.39863471]
[1738165274122,7e-07,101940.0,101930.0,4.35876071]
[1738165274343,7e-07,101940.0,101930.0,1.36863471]
[1738165274790,7e-07,101940.0,101930.0,1.35866554]
[1738165275220,7e-07,101940.0,101930.0,1.32566554]
[1738165275634,7e-07,101940.0,101930.0,1.34563471]
[1738165275858,7e-07,101940.0,101930.0,1.32566554]
[1738165276062,7e-07,101940.0,101930.0,1.20601359]
[1738165276455,7e-07,101940.0,101930.0,1.15601359]
[1738165276655,7e-07,101940.0,101930.0,1.20601359]
[1738165276854,7e-07,101940.0,101930.0,1.30601359]
[1738165277095,7e-07,101940.0,101930.0,0.48403359]
[1738165277342,7e-07,101940.0,101930.0,0.49551359]
[1738165277697,7e-07,101940.0,101930.0,0.64551359]
[1738165278306,7e-07,101940.0,101930.0,0.63403359]
[1738165278506,7e-07,101940.0,101930.0,0.64551359]
[1738165279771,7e-07,101940.0,101930.0,0.63551359]
[1738165280088,0.0808,101950.0,101930.0,0.49114397]
[1738165280301,0.0808,101950.0,101940.0,0.147145]
[1738165280302,0.22793,101950.0,101940.0,0.147145]
[1738165280518,0.32517316,101950.0,101930.0,0.298196]
[1738165280723,0.27687131,101940.0,101930.0,0.007]
[1738165280938,0.37288816,101940.0,101930.0,0.007]
[1738165281149,0.37288816,101940.0,101930.0,0.002]
[1738165281361,0.37318699,101940.0,101930.0,0.002]
[1738165281568,0.12879883,101940.0,101930.0,0.151159]
[1738165281777,0.12879883,101940.0,101930.0,0.147159]
[1738165281995,0.08239883,101940.0,101930.0,0.147159]
[1738165282202,0.00029883,101940.0,101930.0,0.347159]
[1738165282407,0.00029883,101940.0,101930.0,0.348159]
[1738165283268,0.00029883,101940.0,101930.0,0.347159]
[1738165283490,0.00029883,101940.0,101930.0,0.497159]
[1738165283695,0.00129883,101940.0,101930.0,0.497159]
[1738165283909,0.00129883,101940.0,101930.0,0.508639]
[1738165285135,0.00129883,101940.0,101930.0,0.53912671]
[1738165285355,0.00129883,101940.0,101930.0,0.508639]
[1738165285919,0.00129883,101940.0,101930.0,0.507038]
[1738165287729,0.00129883,101940.0,101930.0,0.7594364]
[1738165288569,0.00129883,101940.0,101930.0,0.6347764]
[1738165290081,0.00129883,101940.0,101930.0,0.7922624]
[1738165290277,0.00129883,101940.0,101930.0,0.8743624]
[1738165291249,0.00029883,101940.0,101930.0,0.8743624]
[1738165291452,0.00029883,101940.0,101930.0,0.8408094]
[1738165291599,0.00029883,101940.0,101930.0,0.7228764]
[1738165291794,0.00029883,101940.0,101930.0,0.6292964]
[1738165292019,0.00029883,101940.0,101930.0,0.6407764]
[1738165292223,0.00029883,101940.0,101930.0,0.61028116]
[1738165293051,0.00029883,101940.0,101930.0,0.50528116]
[1738165293206,0.00029883,101940.0,101930.0,0.60428116]
[1738165293410,0.00029883,101940.0,101930.0,0.507038]
[1738165293815,0.00029883,101940.0,101930.0,0.357038]
[1738165294717,0.00029883,101940.0,101930.0,0.259038]
[1738165295631,0.00029883,101940.0,101930.0,0.28957123]
[1738165296423,0.00029883,101940.0,101930.0,0.259038]
[1738165297059,0.00029883,101940.0,101930.0,0.6369638]
[1738165297236,0.00029883,101940.0,101930.0,0.7139638]
[1738165297435,0.00029883,101940.0,101930.0,0.9270018]
[1738165298079,0.00029883,101940.0,101930.0,0.9220018]
[1738165298280,0.00029883,101940.0,101930.0,0.9719018]
[1738165299105,0.00029883,101940.0,101930.0,0.9819018]
[1738165299853,0.00029883,101940.0,101930.0,0.9719018]
[1738165300059,0.00029883,101940.0,101930.0,0.8719018]
[1738165300285,0.00029883,101940.0,101930.0,0.9819018]
[1738165300482,0.00029883,101940.0,101930.0,0.8719018]
[1738165300687,0.00029883,101940.0,101930.0,0.8599358]
[1738165301033,0.00029883,101940.0,101930.0,0.6714558]
[1738165301240,0.00029883,101940.0,101930.0,0.6319238]
[1738165301441,0.00029883,101940.0,101930.0,0.42324064]
[1738165301651,0.00029883,101940.0,101930.0,0.3427002]
[1738165302384,0.00029883,101940.0,101930.0,0.1427002]
[1738165302385,0.22974383,101940.0,101930.0,0.1427002]
[1738165302801,0.32698699,101940.0,101930.0,0.0021422]
[1738165303000,0.32698699,101940.0,101930.0,0.1493012]
[1738165303200,0.08259883,101940.0,101930.0,0.1493012]
[1738165303403,0.00029883,101940.0,101930.0,0.2493012]
[1738165304836,0.00029883,101940.0,101930.0,0.1493012]
[1738165305267,0.00029883,101940.0,101930.0,0.2473012]
[1738165305591,0.00129883,101940.0,101930.0,0.2473012]
[1738165305946,0.01127284,101940.0,101930.0,0.2473012]
[1738165306170,0.00129883,101940.0,101930.0,0.27784336]
[1738165306790,0.00129883,101940.0,101930.0,0.37508652]
[1738165306994,0.00029883,101940.0,101930.0,0.52508652]
[1738165307512,0.00029883,101940.0,101930.0,0.42508652]
[1738165307716,0.00029883,101940.0,101930.0,0.52508652]
[1738165308725,0.00029883,101940.0,101930.0,0.52708652]
[1738165311191,0.00029883,101940.0,101930.0,0.44128336]
[1738165311917,0.00029883,101940.0,101930.0,0.44099624]
[1738165312445,0.00029883,101940.0,101930.0,0.42955624]
[1738165312645,0.00029883,101940.0,101930.0,0.44099624]
[1738165316613,0.00029883,101940.0,101930.0,0.5382394]
[1738165317548,0.00029883,101940.0,101930.0,0.6201394]
[1738165320685,0.00029883,101940.0,101930.0,0.5382394]
[1738165321044,0.00029883,101940.0,101930.0,0.53833679]
[1738165321496,0.00029883,101940.0,101930.0,0.53847899]
[1738165321841,0.00029883,101940.0,101930.0,0.61797899]
[1738165323993,0.00029883,101940.0,101930.0,0.52703899]
[1738165324200,0.00029883,101940.0,101930.0,0.53847899]
[1738165324407,0.00029883,101940.0,101930.0,0.38847899]
[1738165324623,0.00029883,101940.0,101930.0,0.17979583]
[1738165325044,0.00029883,101940.0,101930.0,0.27979583]
[1738165325247,0.00029883,101940.0,101930.0,0.14925367]
[1738165325668,0.00029883,101940.0,101930.0,0.14725367]
[1738165325874,0.00029883,101940.0,101930.0,0.24725367]
[1738165326081,0.00129883,101940.0,101930.0,0.24725367]
[1738165327132,0.00129883,101940.0,101930.0,0.53652316]
[1738165328027,0.00129883,101940.0,101930.0,1.15269516]
[1738165328247,0.16392932,101970.0,101960.0,0.2]
[1738165328248,0.08782932,101970.0,101960.0,0.2]
[1738165328472,0.00951833,101970.0,101960.0,3.49313249]
[1738165328689,0.00951833,101970.0,101960.0,3.82545849]
[1738165328922,0.00951833,101970.0,101960.0,3.92825849]
[1738165329124,3.7e-07,101980.0,101970.0,0.497102]
[1738165329344,3.7e-07,101980.0,101970.0,3.83376549]
[1738165329553,3.7e-07,101980.0,101970.0,0.65793149]
[1738165330198,3.7e-07,101980.0,101970.0,0.73813149]
[1738165331035,3.7e-07,101980.0,101970.0,0.74957149]
[1738165332508,3.7e-07,101980.0,101970.0,0.75057149]
[1738165332731,3.7e-07,101980.0,101970.0,0.64057149]
[1738165332946,3.7e-07,101980.0,101970.0,0.73695294]
[1738165333558,3.7e-07,101980.0,101970.0,0.74195294]
[1738165333803,3.7e-07,101980.0,101970.0,0.54237149]
[1738165334037,3.7e-07,101980.0,101970.0,0.51178516]
[1738165334241,3.7e-07,101980.0,101970.0,0.61178516]
[1738165334649,3.7e-07,101980.0,101970.0,0.51178516]
[1738165334858,3.7e-07,101980.0,101970.0,0.61178516]
[1738165336131,3.7e-07,101980.0,101970.0,0.50034516]
[1738165336359,3.7e-07,101980.0,101970.0,0.46178516]
[1738165336739,3.7e-07,101980.0,101970.0,0.61178516]
[1738165337007,3.7e-07,101980.0,101970.0,0.264542]
[1738165337951,3.7e-07,101980.0,101970.0,0.259542]
[1738165338366,0.00100037,101980.0,101970.0,0.259542]
[1738165338596,0.00100037,101980.0,101970.0,0.45578516]
[1738165339376,0.00100037,101980.0,101970.0,0.60578516]
[1738165340594,3.7e-07,101980.0,101970.0,0.60578516]
[1738165341009,3.7e-07,101980.0,101970.0,0.60778516]
[1738165341469,3.7e-07,101980.0,101970.0,0.60578516]
[1738165341916,3.7e-07,101980.0,101970.0,0.61078516]
[1738165343377,3.7e-07,101980.0,101970.0,0.64118939]
[1738165343790,3.7e-07,101980.0,101970.0,0.61078516]
[1738165344008,3.7e-07,101980.0,101970.0,0.61178516]
[1738165345850,3.7e-07,101980.0,101970.0,0.61192736]
[1738165347234,3.7e-07,101980.0,101970.0,0.50048736]
[1738165347447,3.7e-07,101980.0,101970.0,0.36192736]
[1738165347625,3.7e-07,101980.0,101970.0,0.46192736]
[1738165347979,3.7e-07,101980.0,101970.0,0.61192736]
[1738165348365,3.7e-07,101980.0,101970.0,0.60048736]
[1738165348568,3.7e-07,101980.0,101970.0,0.61192736]
[1738165349489,3.7e-07,101980.0,101970.0,0.60692736]
[1738165349882,3.7e-07,101980.0,101970.0,0.60792736]
[1738165352218,3.7e-07,101980.0,101970.0,0.2492442]
[1738165352388,3.7e-07,101980.0,101970.0,0.1492442]
[1738165352590,3.7e-07,101980.0,101970.0,0.2492442]
[1738165353018,3.7e-07,101980.0,101970.0,0.1492442]
[1738165353449,0.14708737,101980.0,101970.0,0.0021422]
[1738165353656,0.22858737,101980.0,101970.0,0.1492442]
[1738165353861,0.22858737,101980.0,101970.0,0.1472442]
[1738165354255,0.22958737,101980.0,101970.0,0.1472442]
[1738165356438,0.32683053,101980.0,101970.0,0.0001422]
[1738165356643,0.39533053,101980.0,101970.0,0.0001422]
[1738165357642,0.40497241,101980.0,101970.0,0.0001422]
[1738165358588,0.40497241,101980.0,101970.0,1e-08]
[1738165358589,0.6757168,101980.0,101970.0,1e-08]
[1738165358792,0.6657168,101980.0,101970.0,1e-08]
[1738165360802,0.55497241,101980.0,101970.0,1e-08]
[1738165361014,0.23488541,101980.0,101970.0,0.14710201]
[1738165361254,0.09314225,101980.0,101970.0,0.14710201]
[1738165361887,0.09214225,101980.0,101970.0,0.14710201]
[1738165362138,0.23922925,101980.0,101970.0,0.14710201]
[1738165362346,0.09314225,101980.0,101970.0,0.14710201]
[1738165362914,0.23922925,101980.0,101970.0,0.14710201]
[1738165363660,0.09214225,101980.0,101970.0,0.14710201]
[1738165364079,0.23922925,101980.0,101970.0,0.14710201]
[1738165364281,0.24222925,101980.0,101970.0,0.14710201]
[1738165364663,0.24322925,101980.0,101970.0,0.14710201]
[1738165368083,0.09614225,101980.0,101970.0,0.14710201]
[1738165369245,0.24322925,101980.0,101970.0,0.14710201]
[1738165369455,0.34047241,101980.0,101970.0,1e-08]
[1738165369664,0.38587241,101980.0,101970.0,1e-08]
[1738165369881,0.6696168,101980.0,101970.0,1e-08]
[1738165370097,0.6696168,101980.0,101930.0,0.4570082]
[1738165370098,0.14713,101950.0,101930.0,0.4570082]
[1738165370303,0.343316,101950.0,101940.0,0.00014501]
[1738165370524,0.343316,101950.0,101940.0,0.0002309]
[1738165370742,0.343316,101950.0,101940.0,0.1473759]
[1738165371064,0.343316,101950.0,101940.0,0.0002309]
[1738165371269,0.51805916,101950.0,101940.0,0.0002309]
[1738165371677,0.65180355,101950.0,101940.0,0.0022309]
[1738165372333,0.81180355,101950.0,101940.0,0.0022309]
[1738165372545,0.340145,101940.0,101930.0,0.1136622]
[1738165372748,0.43738816,101940.0,101930.0,0.1136622]
[1738165372988,0.43738816,101940.0,101930.0,0.1166622]
[1738165373434,0.29419338,101950.0,101930.0,0.2608212]
[1738165373664,0.29419338,101950.0,101930.0,0.4570202]
[1738165373665,0.63774816,101950.0,101930.0,0.4570202]
[1738165373801,0.147145,101940.0,101930.0,0.2608212]
[1738165373997,0.147145,101940.0,101930.0,0.1136622]
[1738165374222,0.24561443,101940.0,101930.0,0.11374586]
[1738165374432,0.24438816,101940.0,101930.0,0.11374586]
[1738165374640,0.09724316,101940.0,101930.0,0.26090486]
[1738165374814,0.346319,101950.0,101930.0,0.45710386]
[1738165375015,0.63974816,101950.0,101930.0,0.45710386]
[1738165375219,0.147145,101940.0,101930.0,0.26090486]
[1738165375455,0.14837124,101940.0,101930.0,0.26090486]
[1738165375629,0.63675516,101950.0,101930.0,0.65332086]
[1738165375829,0.147145,101940.0,101930.0,0.26090486]
[1738165377017,0.147145,101940.0,101930.0,0.11374586]
[1738165377222,0.1483713,101940.0,101930.0,0.11374586]
[1738165377546,0.147145,101940.0,101930.0,0.26090486]
[1738165378311,0.24561446,101940.0,101930.0,0.01018586]
[1738165378520,0.24438816,101940.0,101930.0,0.01018586]
[1738165378716,0.24438816,101940.0,101930.0,0.15734486]
[1738165379305,0.24638816,101940.0,101930.0,0.01018586]
[1738165379943,0.26938816,101940.0,101930.0,0.01018586]
[1738165380283,0.46183255,101940.0,101930.0,0.01018586]
[1738165380468,0.35108816,101940.0,101930.0,0.01018586]
[1738165381303,0.24638816,101940.0,101930.0,0.15734486]
[1738165381514,0.149145,101940.0,101930.0,0.15734486]
[1738165382747,0.005,101940.0,101930.0,0.15734486]
[1738165383298,0.1533712,101940.0,101930.0,0.15734486]
[1738165383673,0.25061436,101940.0,101930.0,0.01018586]
[1738165383903,0.24938816,101940.0,101930.0,0.01018586]
[1738165384088,0.24638816,101940.0,101930.0,0.01018586]
[1738165384669,0.60883255,101940.0,101930.0,0.01018586]
[1738165384859,0.60683255,101940.0,101930.0,0.01018586]
[1738165385463,0.49608816,101940.0,101930.0,0.01018586]
[1738165385909,0.8902337,101940.0,101930.0,0.0075231]
[1738165386055,0.147188,101910.0,101900.0,0.1964113]
[1738165386258,0.343413,101920.0,101910.0,0.147188]